{"text_format":"1","workbook":"xlsx","n_sheets":7,"sheets":["1. Liga","2. Liga","Jugend"," Schüler A","Schüler C","Meldungen","gelb_rote Karten"],"not_rendered":{"charts":0,"images":0,"macros":0,"external_links":0,"defined_names":4,"comments":0,"pivot_tables":0},"unopened":[],"bounds":{"document_bytes":16777216,"sheet_cells":100000,"rows_first":2000,"rows_last":500,"rows_between":2000,"halvings":0,"cell_chars":16384,"cell_head_chars":4096},"cells_cut":0,"cells_raw":0,"read":"whole","date_system":"1900"}

{"sheet":"1. Liga","index":0,"n_rows":32,"n_cols":29,"rows_kept":32,"cut":false,"hidden":false,"merged":[[27,25,27,26],[9,15,9,16],[2,1,2,6],[2,7,14,7],[2,8,2,22],[3,1,3,6],[3,9,3,22],[4,1,4,6],[4,9,4,22],[5,1,5,6],[5,9,5,22],[6,1,6,6],[6,9,6,22],[7,1,7,6],[8,1,8,2],[8,3,8,6],[8,15,8,16],[24,9,24,28],[10,15,10,16],[11,15,11,16],[12,15,12,16],[15,9,15,10],[15,11,15,12],[15,13,15,14],[15,15,15,16],[20,9,20,10],[20,11,20,12],[20,13,20,14],[20,15,20,16],[23,9,23,28],[31,0,31,6],[31,9,31,22],[31,23,31,24],[28,9,28,22],[28,23,28,24],[29,0,29,6],[29,9,29,22],[29,23,29,24],[30,0,30,6],[30,9,30,22],[30,23,30,24]]}
[]
[]
["Bewerb:","Vorarlberger Meisterschaft 2018",null,null,null,null,null,null,"Mannschaften 1. Liga"]
["Veranstalter:","VLRV Vorarlberg",null,null,null,null,null,null,"Höchst 1","Patrick Schnetzer / Markus Bröll"]
["Ausrichter:","RC Höchst",null,null,null,null,null,null,"Höchst 2","Simon König / Florian Fischer"]
["Spielort:","Rheinauhalle",null,null,null,null,null,null,"Lustenau","Martn Lingg / Daniel König"]
["Termin","Donnerstag 3. Mai",null,null,null,null,null,null,"IG Sulz/D'birn","Kevin Bachmann / Stefan Feurstein"]
["Beginn:","19:00 - 20:30 Uhr"]
["Kategorie:","1. Liga",null,"Finale",null,null,null,null,"Mannschaft",1,2,3,4,5,6,"Pkt."]
[null,null,null,null,null,null,null,null,"Höchst 1"]
[" ","Mannschaft","  ","Mannschaft",null,null,null,null,"Höchst 2"]
["Spiel 1","Höchst 1",":","IG Sulz/D'birn",null,":",null,null,"Lustenau"]
["Spiel 2","Höchst 2",":","Lustenau",null,":",null,null,"IG Sulz/D'birn"]
["Spiel 3","Höchst 1",":","Lustenau",null,":"]
["Spiel 4","Höchst 2",":","IG Sulz/D'birn",null,":",null,null,null,"Team 1",null,"Team 2",null,"Team 3",null,"Team 4"]
["Spiel 5","Lustenau",":","IG Sulz/D'birn",null,":",null,null,null,"Höch 1",null,"Höch 2",null,"L'enau",null,"Su/Do"]
["Spiel 6","Höchst 1",":","Höchst 2",null,":",null,null,"1. Spiel"]
[null,null,null,null,null,null,null,null,"2. Spiel"]
[null,null,null,null,null,null,null,null,"3. Spiel"]
[null,null,null,null,null,null,null,null,"Tore/Total"]
[null,null,null,null,null,null,null,null,"Differenz"]
[]
[]
[null,null,null,null,null,null,null,null,"Zeitnehmer"]
[null,null,null,null,null,null,null,null,"Kommisär"]
[]
[]
[null,null,null,null,null,null,null,null,"Endstand LM 2018",null,null,null,null,null,null,null,null,null,null,null,null,null,null,"Pkte",null,"Tore",null,"Tdf","Rg"]
["Vorkommnisse","Spielzeit 2 x 7 Minuten",null,null,null,null,null,null,null,null,null,null,null,null,null,null,null,null,null,null,null,null,null,null,null,null,null,null,1]
[null,null,null,null,null,null,null,null,null,null,null,null,null,null,null,null,null,null,null,null,null,null,null,null,null,null,null,null,2]
[null,null,null,null,null,null,null,null,null,null,null,null,null,null,null,null,null,null,null,null,null,null,null,null,null,null,null,null,3]
[null,null,null,null,null,null,null,null,null,null,null,null,null,null,null,null,null,null,null,null,null,null,null,null,null,null,null,null,4]

{"sheet":"2. Liga","index":1,"n_rows":113,"n_cols":24,"rows_kept":113,"cut":false,"hidden":false,"merged":[[112,0,112,6],[112,9,112,18],[109,1,109,6],[109,9,109,18],[110,0,110,6],[110,9,110,18],[111,0,111,6],[111,9,111,18],[104,9,104,23],[105,9,105,23],[107,8,107,18],[107,20,107,21],[108,9,108,18],[102,9,102,10],[102,11,102,12],[102,13,102,14],[102,15,102,16],[102,17,102,18],[85,1,85,6],[85,9,85,18],[86,1,86,2],[86,3,86,6],[96,9,96,10],[96,11,96,12],[96,13,96,14],[96,15,96,16],[96,17,96,18],[82,1,82,6],[82,9,82,18],[83,1,83,6],[83,9,83,18],[84,1,84,6],[84,9,84,18],[80,1,80,6],[80,8,80,18],[80,20,80,21],[81,1,81,6],[81,9,81,18],[63,9,63,10],[57,17,57,18],[73,0,73,6],[73,9,73,18],[75,0,75,3],[72,0,72,6],[72,9,72,18],[63,15,63,16],[63,17,63,18],[41,20,41,21],[70,1,70,6],[70,9,70,18],[71,0,71,6],[71,9,71,18],[65,9,65,23],[66,9,66,23],[68,8,68,18],[68,20,68,21],[69,9,69,18],[44,1,44,6],[44,9,44,18],[45,1,45,6],[45,9,45,18],[63,11,63,12],[63,13,63,14],[46,1,46,6],[46,9,46,18],[47,1,47,2],[47,3,47,6],[57,9,57,10],[57,11,57,12],[57,13,57,14],[57,15,57,16],[43,1,43,6],[43,9,43,18],[41,1,41,6],[41,8,41,18],[42,1,42,6],[42,9,42,18],[36,0,36,3],[5,1,5,6],[17,11,17,12],[17,13,17,14],[17,15,17,16],[23,15,23,16],[29,9,29,18],[30,1,30,6],[30,9,30,18],[31,9,31,18],[31,0,31,6],[32,0,32,6],[32,9,32,18],[33,0,33,6],[33,9,33,18],[35,0,35,3],[17,17,17,18],[6,1,6,6],[7,1,7,2],[7,3,7,6],[17,9,17,10],[1,1,1,6],[1,8,1,18],[2,9,2,18],[3,9,3,18],[4,9,4,18],[3,1,3,6],[2,1,2,6],[4,1,4,6],[23,17,23,18],[25,9,25,23],[26,9,26,23],[28,8,28,18],[23,9,23,10],[23,11,23,12],[23,13,23,14],[28,20,28,21],[5,9,5,18],[6,9,6,18]]}
[]
["Bewerb:","Vorarlberger Meisterschaft 2018",null,null,null,null,null,null,"Mannschaften"]
["Veranstalter:","VLRV Vorarlberg",null,null,null,null,null,null,"Höchst 3","Simon Kaufmann / Simon Schlegl"]
["Ausrichter:","RC Höchst",null,null,null,null,null,null,"Sulz","Jonas Hron / Mario Greussing"]
["Spielort:","Rheinauhalle",null,null,null,null,null,null,"Dornbirn 1","Simon Buchhäusl / Robert Rutkowski"]
["Termin","Samstag 10. März",null,null,null,null,null,null,"Dornbirn 2","Max Schwendinger / Bastian Arnoldi"]
["Beginn:","16:00 - 19:00 Uhr",null,null,null,null,null,null,"Dornbirn 3","Patrick Mittelberger / Lukas Reich"]
["Kategorie:","2. Liga",null,"1. Runde"]
[]
[null,"Mannschaft","  ","Mannschaft",null,null,null,null,"Mannschaft",1,2,3,4,5,6,7,8,9,10,"Pkt."]
["Spiel 1","Dornbirn 1",":","Dornbirn 3",7,":",2,null,"Dornbirn 1",3,null,null,3,null,null,3,null,null,3,12]
["Spiel 2","Höchst 3",":","Dornbirn 2",5,":",3,null,"Höchst 3",null,3,null,null,3,null,null,3,null,0,9]
["Spiel 3","Sulz",":","Dornbirn 3",3,":",2,null,"Dornbirn 2",null,0,null,0,null,3,null,null,3,null,6]
["Spiel 4","Dornbirn 1",":","Dornbirn 2",6,":",1,null,"Sulz",null,null,3,null,0,null,0,null,0,null,3]
["Spiel 5","Höchst 3",":","Sulz",5,":",2,null,"Dornbirn 3",0,null,0,null,null,0,null,0,null,null,0]
["Spiel 6","Dornbirn 2",":","Dornbirn 3",7,":",5]
["Spiel 7","Dornbirn 1",":","Sulz",6,":",2,null,null,"Team 1",null,"Team 2",null,"Team 3",null,"Team 4",null,"Team 5"]
["Spiel 8","Höchst 3",":","Dornbirn 3",4,":",0,null,null,"D'birn 1",null,"Höch 3",null,"D'birn 2",null,"Sulz",null,"D'birn 3"]
["Spiel 9","Dornbirn 2",":","Sulz",5,":",2,null,"1. Spiel",7,2,5,3,3,5,3,2,2,7]
["Spiel 10","Dornbirn 1",":","Höchst 3",3,":",2,null,"2. Spiel",6,1,5,2,1,6,2,5,2,3]
[null,null,null,null,null,null,null,null,"3. Spiel",6,2,4,0,7,5,2,6,5,7]
[null,null,null,null,null,null,null,null,"4. Spiel",3,2,2,3,5,2,2,5,0,4]
[null,null,null,null,null,null,null,null,"Tore/Total",22,7,16,8,16,18,9,18,9,21]
[null,null,null,null,null,null,null,null,"Differenz",15,null,8,null,-2,null,-9,null,-12]
[]
[null,null,null,null,null,null,null,null,"Zeitnehmer","Johann Thaler,"]
[null,null,null,null,null,null,null,null,"Kommisär","Patrick Schnetzer, Markus Bröll"]
[]
[null,null,null,null,null,null,null,null,"Endstand 1. Runde",null,null,null,null,null,null,null,null,null,null,"Pkt.","Tore",null,"TDF","Rg."]
[null,null,null,null,null,null,null,null,"Dornbirn 1","Simon Buchhäusl / Robert Rutkowski",null,null,null,null,null,null,null,null,null,12,22,7,15,"1."]
["Vorkommnisse","2 x 7 Minuten Spielzeit",null,null,null,null,null,null,"Höchst 3","Simon Kaufmann / Simon Schlegl",null,null,null,null,null,null,null,null,null,9,16,8,8,"2."]
[null,null,null,null,null,null,null,null,"Dornbirn 2","Max Schwendinger / Bastian Arnoldi",null,null,null,null,null,null,null,null,null,6,16,18,-2,"3."]
[null,null,null,null,null,null,null,null,"Sulz","Jonas Hron / Mario Greussing",null,null,null,null,null,null,null,null,null,3,9,18,-9,"4."]
[null,null,null,null,null,null,null,null,"Dornbirn 3","Patrick Mittelberger / Lukas Reich",null,null,null,null,null,null,null,null,null,0,9,21,-12,"5."]
[]
["2. Runde am 07. April in Dornbirn"]
["Finale am 21. April in Sulz"]
[]
[]
[]
[]
["Bewerb:","Vorarlberger Meisterschaft 2018",null,null,null,null,null,null,"Zwischenstand nach der 1. Runde",null,null,null,null,null,null,null,null,null,null,"Pkt.","Tore",null,"TDF","Rg."]
["Veranstalter:","VLRV Vorarlberg",null,null,null,null,null,null,"Dornbirn 1","Simon Buchhäusl / Robert Rutkowski",null,null,null,null,null,null,null,null,null,12,22,7,15,"1."]
["Ausrichter:","RV Dornbirn",null,null,null,null,null,null,"Höchst 3","Simon Kaufmann / Simon Schlegl",null,null,null,null,null,null,null,null,null,9,16,8,8,"2."]
["Spielort:","HS Haselstauden (Bunker)",null,null,null,null,null,null,"Dornbirn 2","Max Schwendinger / Bastian Arnoldi",null,null,null,null,null,null,null,null,null,6,16,18,-2,"3."]
["Termin","Samstag 07. April",null,null,null,null,null,null,"Sulz","Jonas Hron / Mario Greussing",null,null,null,null,null,null,null,null,null,3,9,18,-9,"4."]
["Beginn:","17:00 - 20:00 Uhr",null,null,null,null,null,null,"Dornbirn 3","Patrick Mittelberger / Lukas Reich",null,null,null,null,null,null,null,null,null,0,9,21,-12,"5."]
["Kategorie:","2. Liga",null,"2. Runde"]
[]
[null,"Mannschaft","  ","Mannschaft",null,null,null,null,"Mannschaft",1,2,3,4,5,6,7,8,9,10,"Pkt."]
["Spiel 1","Dornbirn 1",":","Dornbirn 3",8,":",3,null,"Dornbirn 1",3,null,null,3,null,null,3,null,null,3,12]
["Spiel 2","Höchst 3",":","Dornbirn 2",1,":",2,null,"Höchst 3",null,0,null,null,0,null,null,3,null,0,3]
["Spiel 3","Sulz",":","Dornbirn 3",0,":",6,null,"Dornbirn 2",null,3,null,0,null,3,null,null,3,null,9]
["Spiel 4","Dornbirn 1",":","Dornbirn 2",3,":",2,null,"Sulz",null,null,0,null,3,null,0,null,0,null,3]
["Spiel 5","Höchst 3",":","Sulz",3,":",4,null,"Dornbirn 3",0,null,3,null,null,0,null,0,null,null,3]
["Spiel 6","Dornbirn 2",":","Dornbirn 3",9,":",1]
["Spiel 7","Dornbirn 1",":","Sulz",6,":",5,null,null,"Team 1",null,"Team 2",null,"Team 3",null,"Team 4",null,"Team 5"]
["Spiel 8","Höchst 3",":","Dornbirn 3",6,":",2,null,null,"D'birn 1",null,"Höch 3",null,"D'birn 2",null,"Sulz",null,"D'birn 3"]
["Spiel 9","Dornbirn 2",":","Sulz",7,":",4,null,"1. Spiel",8,3,1,2,2,1,0,6,3,8]
["Spiel 10","Dornbirn 1",":","Höchst 3",5,":",3,null,"2. Spiel",3,2,3,4,2,3,4,3,6,0]
[null,null,null,null,null,null,null,null,"3. Spiel",6,5,6,2,9,1,5,6,1,9]
[null,null,null,null,null,null,null,null,"4. Spiel",5,3,3,5,7,4,4,7,2,6]
[null,null,null,null,null,null,null,null,"Tore/Total",22,13,13,13,20,9,13,22,12,23]
[null,null,null,null,null,null,null,null,"Differenz",9,null,0,null,11,null,-9,null,-11]
[]
[null,null,null,null,null,null,null,null,"Zeitnehmer","Philipp Schwendinger / Patrick Köck"]
[null,null,null,null,null,null,null,null,"Kommisär","Michael Eiler / Gernot Fontain"]
[]
[null,null,null,null,null,null,null,null,"Endstand 2. Runde",null,null,null,null,null,null,null,null,null,null,"Pkt.","Tore",null,"TDF","Rg."]
[null,null,null,null,null,null,null,null,"Dornbirn 1","Simon Buchhäusl / Robert Rutkowski",null,null,null,null,null,null,null,null,null,24,44,20,24,"1."]
["Vorkommnisse","2 x 7 Minuten Spielzeit",null,null,null,null,null,null,"Dornbirn 2","Max Schwendinger / Bastian Arnoldi",null,null,null,null,null,null,null,null,null,15,36,27,9,"2."]
["Höchst 3: Johannes Bauer statt Simon Schlegl",null,null,null,null,null,null,null,"Höchst 3","Simon Kaufmann / Simon Schlegl",null,null,null,null,null,null,null,null,null,12,29,21,8,"3."]
["Sulz: Alexander Greussing statt Mario Greussing",null,null,null,null,null,null,null,"Sulz","Jonas Hron / Mario Greussing",null,null,null,null,null,null,null,null,null,6,22,40,-18,"4."]
[null,null,null,null,null,null,null,null,"Dornbirn 3","Patrick Mittelberger / Lukas Reich",null,null,null,null,null,null,null,null,null,3,21,44,-23,"5."]
[]
["Finale am 21. April in Sulz"]
[]
[]
[]
[]
["Bewerb:","Vorarlberger Meisterschaft 2018",null,null,null,null,null,null,"Zwischenstand 2. Runde",null,null,null,null,null,null,null,null,null,null,"Pkt.","Tore",null,"TDF","Rg."]
["Veranstalter:","VLRV Vorarlberg",null,null,null,null,null,null,"Dornbirn 1","Simon Buchhäusl / Robert Rutkowski",null,null,null,null,null,null,null,null,null,24,44,20,24,"1."]
["Ausrichter:","RV Sulz",null,null,null,null,null,null,"Dornbirn 2","Max Schwendinger / Bastian Arnoldi",null,null,null,null,null,null,null,null,null,15,36,27,9,"2."]
["Spielort:","Haupschule Sulz",null,null,null,null,null,null,"Höchst 3","Simon Kaufmann / Simon Schlegl",null,null,null,null,null,null,null,null,null,12,29,21,8,"3."]
["Termin","Freitag 20. April",null,null,null,null,null,null,"Sulz","Jonas Hron / Mario Greussing",null,null,null,null,null,null,null,null,null,6,22,40,-18,"4."]
["Beginn:","18:30 - 21:30 Uhr",null,null,null,null,null,null,"Dornbirn 3","Patrick Mittelberger / Lukas Reich",null,null,null,null,null,null,null,null,null,3,21,44,-23,"5."]
["Kategorie:","2. Liga",null,"Finale"]
[]
[null,"Mannschaft","  ","Mannschaft",null,null,null,null,"Mannschaft",1,2,3,4,5,6,7,8,9,10,"Pkt."]
["Spiel 1","Dornbirn 1",":","Dornbirn 3",6,":",3,null,"Dornbirn 1",3,null,null,0,null,null,0,null,null,3,6]
["Spiel 2","Höchst 3",":","Dornbirn 2",3,":",2,null,"Höchst 3",null,3,null,null,3,null,null,3,null,0,9]
["Spiel 3","Sulz",":","Dornbirn 3",4,":",4,null,"Dornbirn 2",null,0,null,3,null,3,null,null,3,null,9]
["Spiel 4","Dornbirn 1",":","Dornbirn 2",3,":",5,null,"Sulz",null,null,1,null,0,null,3,null,0,null,4]
["Spiel 5","Höchst 3",":","Sulz",5,":",3,null,"Dornbirn 3",0,null,1,null,null,0,null,0,null,null,1]
["Spiel 6","Dornbirn 2",":","Dornbirn 3",9,":",4]
["Spiel 7","Dornbirn 1",":","Sulz",4,":",6,null,null,"Team 1",null,"Team 2",null,"Team 3",null,"Team 4",null,"Team 5"]
["Spiel 8","Höchst 3",":","Dornbirn 3",8,":",2,null,null,"D'birn 1",null,"Höch 3",null,"D'birn 2",null,"Sulz",null,"D'birn 3"]
["Spiel 9","Dornbirn 2",":","Sulz",5,":",1,null,"1. Spiel",6,3,3,2,2,3,4,4,3,6]
["Spiel 10","Dornbirn 1",":","Höchst 3",6,":",5,null,"2. Spiel",3,5,5,3,5,3,3,5,4,4]
[null,null,null,null,null,null,null,null,"3. Spiel",4,6,8,2,9,4,6,4,4,9]
[null,null,null,null,null,null,null,null,"4. Spiel",6,5,5,6,5,1,1,5,2,8]
[null,null,null,null,null,null,null,null,"Tore/Total",{"$f":"SUM(J98:J101)","v":19},{"$f":"SUM(K98:K101)","v":19},21,13,21,11,14,18,13,27]
[null,null,null,null,null,null,null,null,"Differenz",0,null,8,null,10,null,-4,null,-14]
[]
[null,null,null,null,null,null,null,null,"Zeitnehmer","Bachmann Markus"]
[null,null,null,null,null,null,null,null,"Kommisär","Fontain Gernot, Bachmann Kevin"]
[]
[null,null,null,null,null,null,null,null,"Endstand LM 2018",null,null,null,null,null,null,null,null,null,null,"Pkt.","Tore",null,"TDF","Rg."]
[null,null,null,null,null,null,null,null,"Dornbirn 1","Simon Buchhäusl / Robert Rutkowski",null,null,null,null,null,null,null,null,null,30,63,39,24,"1."]
["Vorkommnisse","2 x 7 Minuten Spielzeit",null,null,null,null,null,null,"Dornbirn 2","Max Schwendinger / Bastian Arnoldi",null,null,null,null,null,null,null,null,null,24,57,38,19,"2."]
["Gmeiner Arno für Raich Lukas",null,null,null,null,null,null,null,"Höchst 3","Simon Kaufmann / Simon Schlegl",null,null,null,null,null,null,null,null,null,21,50,34,16,"3."]
["Greussing Alexander für Greussing Mario",null,null,null,null,null,null,null,"Sulz","Jonas Hron / Mario Greussing",null,null,null,null,null,null,null,null,null,10,36,58,-22,"4."]
[null,null,null,null,null,null,null,null,"Dornbirn 3","Patrick Mittelberger / Lukas Reich",null,null,null,null,null,null,null,null,null,4,34,71,-37,"5."]

{"sheet":"Jugend","index":2,"n_rows":111,"n_cols":24,"rows_kept":111,"cut":false,"hidden":false,"merged":[[110,0,110,6],[110,9,110,18],[107,1,107,6],[107,9,107,18],[108,0,108,6],[108,9,108,18],[109,0,109,6],[109,9,109,18],[102,9,102,23],[103,9,103,23],[105,8,105,18],[105,20,105,21],[106,9,106,18],[100,9,100,10],[100,11,100,12],[100,13,100,14],[100,15,100,16],[100,17,100,18],[83,1,83,6],[83,9,83,18],[84,1,84,2],[84,3,84,6],[94,9,94,10],[94,11,94,12],[94,13,94,14],[94,15,94,16],[94,17,94,18],[80,1,80,6],[80,9,80,18],[81,1,81,6],[81,9,81,18],[82,1,82,6],[82,9,82,18],[78,1,78,6],[78,8,78,18],[78,20,78,21],[79,1,79,6],[79,9,79,18],[72,0,72,6],[72,9,72,18],[74,0,74,3],[40,20,40,21],[69,1,69,6],[69,9,69,18],[70,0,70,6],[70,9,70,18],[71,0,71,6],[71,9,71,18],[64,9,64,23],[65,9,65,23],[67,8,67,18],[67,20,67,21],[68,9,68,18],[56,15,56,16],[56,17,56,18],[62,9,62,10],[62,11,62,12],[62,13,62,14],[62,15,62,16],[62,17,62,18],[46,1,46,2],[46,3,46,6],[56,9,56,10],[56,11,56,12],[56,13,56,14],[43,1,43,6],[43,9,43,18],[44,1,44,6],[44,9,44,18],[45,1,45,6],[45,9,45,18],[40,1,40,6],[40,8,40,18],[41,1,41,6],[41,9,41,18],[42,1,42,6],[42,9,42,18],[32,0,32,6],[32,9,32,18],[33,0,33,6],[33,9,33,18],[36,0,36,3],[26,9,26,23],[28,8,28,18],[29,9,29,18],[30,1,30,6],[30,9,30,18],[28,20,28,21],[17,9,17,10],[17,11,17,12],[17,13,17,14],[17,15,17,16],[31,0,31,6],[31,9,31,18],[1,1,1,6],[1,8,1,18],[2,1,2,6],[2,9,2,18],[3,1,3,6],[3,9,3,18],[35,0,35,3],[4,1,4,6],[4,9,4,18],[5,1,5,6],[5,9,5,18],[6,1,6,6],[6,9,6,18],[17,17,17,18],[23,9,23,10],[23,11,23,12],[23,13,23,14],[23,15,23,16],[23,17,23,18],[7,1,7,2],[7,3,7,6],[25,9,25,23]]}
[]
["Bewerb:","Vorarlberger Meisterschaft 2018",null,null,null,null,null,null,"Mannschaften"]
["Veranstalter:","VLRV Vorarlberg",null,null,null,null,null,null,"Höchst 1","Jonas Lampert / Leon Schobel"]
["Ausrichter:","RC Höchst",null,null,null,null,null,null,"Höchst 2","Elias Gabriel / Linus Lampert"]
["Spielort:","Rheinauhalle",null,null,null,null,null,null,"Dornbirn 1","Philipp Schwendinger / Jonathan Gawlik"]
["Termin","Samstag 10. März",null,null,null,null,null,null,"Dornbirn 2","Simon Tiefenthaler / Michael Feurstein"]
["Beginn:","14:00 - 16:00 Uhr",null,null,null,null,null,null,"Hohenems","Tobias und David Prisching"]
["Kategorie:","Jugend",null,"1. Runde"]
[]
[null,"Mannschaft","  ","Mannschaft",null,null,null,null,"Mannschaft",1,2,3,4,5,6,7,8,9,10,"Pkt."]
["Spiel 1","Dornbirn 1",":","Dornbirn 2",7,":",0,null,"Dornbirn 1",3,null,null,0,null,null,3,null,null,3,9]
["Spiel 2","Höchst 1",":","Höchst 2",2,":",5,null,"Höchst 1",null,0,null,null,3,null,null,3,null,0,6]
["Spiel 3","Hohenems",":","Dornbirn 2",1,":",2,null,"Höchst 2",null,3,null,3,null,3,null,null,3,null,12]
["Spiel 4","Dornbirn 1",":","Höchst 2",3,":",5,null,"Hohenems",null,null,0,null,0,null,0,null,0,null,0]
["Spiel 5","Höchst 1",":","Hohenems",5,":",0,null,"Dornbirn 2",0,null,3,null,null,0,null,0,null,null,3]
["Spiel 6","Höchst 2",":","Dornbirn 2",4,":",1]
["Spiel 7","Dornbirn 1",":","Hohenems",7,":",0,null,null,"Team 1",null,"Team 2",null,"Team 3",null,"Team 4",null,"Team 5"]
["Spiel 8","Höchst 1",":","Dornbirn 2",4,":",0,null,null,"D'birn 1",null,"Höch 1",null,"Höch 2",null,"H'ems",null,"D'birn 2"]
["Spiel 9","Höchst 2",":","Hohenems",1,":",6,null,"1. Spiel",7,0,2,5,5,2,1,2,0,7]
["Spiel 10","Dornbirn 1",":","Höchst 1",6,":",4,null,"2. Spiel",3,5,5,0,5,3,0,5,2,1]
[null,null,null,null,null,null,null,null,"3. Spiel",7,0,4,0,4,1,0,7,1,4]
[null,null,null,null,null,null,null,null,"4. Spiel",6,4,4,6,6,1,1,6,0,4]
[null,null,null,null,null,null,null,null,"Tore/Total",23,9,15,11,20,7,2,20,3,16]
[null,null,null,null,null,null,null,null,"Differenz",14,null,4,null,13,null,-18,null,-13]
[]
[null,null,null,null,null,null,null,null,"Zeitnehmer","Johann Thaler"]
[null,null,null,null,null,null,null,null,"Kommisär","Florian Fischer/Andreas Lubetz"]
[]
[null,null,null,null,null,null,null,null,"Endstand nach der 1. Runde",null,null,null,null,null,null,null,null,null,null,"Pkt.","Tore",null,"TDF","Rg."]
[null,null,null,null,null,null,null,null,"Höchst 2","Elias Gabriel / Linus Lampert",null,null,null,null,null,null,null,null,null,12,20,7,13,"1."]
["Vorkommnisse","2 x 5 Minuten Spielzeit",null,null,null,null,null,null,"Dornbirn 1","Philipp Schwendinger / Jonathan Gawlik",null,null,null,null,null,null,null,null,null,9,23,9,14,"2."]
["Hohenems: für David Prisching Elias Kronberger",null,null,null,null,null,null,null,"Höchst 1","Jonas Lampert / Leon Schobel",null,null,null,null,null,null,null,null,null,6,15,11,4,"3."]
[null,null,null,null,null,null,null,null,"Dornbirn 2","Simon Tiefenthaler / Michael Feurstein",null,null,null,null,null,null,null,null,null,3,3,16,-13,"4."]
[null,null,null,null,null,null,null,null,"Hohenems","Tobias Prisching / Elias Kronberger",null,null,null,null,null,null,null,null,null,0,2,20,-18,"5."]
[]
["2. Runde am 07. April in Dornbirn"]
["Finale am 21. April in Sulz"]
[]
[]
[]
["Bewerb:","Vorarlberger Meisterschaft 2018",null,null,null,null,null,null,"Zwischenstand nach der 1. Runde",null,null,null,null,null,null,null,null,null,null,"Pkt.","Tore",null,"TDF","Rg."]
["Veranstalter:","VLRV Vorarlberg",null,null,null,null,null,null,"Höchst 2","Elias Gabriel / Linus Lampert",null,null,null,null,null,null,null,null,null,12,20,7,13,"1."]
["Ausrichter:","RV Dornbirn",null,null,null,null,null,null,"Dornbirn 1","Philipp Schwendinger / Jonathan Gawlik",null,null,null,null,null,null,null,null,null,9,23,9,14,"2."]
["Spielort:","HS Haselstauden (Bunker)",null,null,null,null,null,null,"Höchst 1","Jonas Lampert / Leon Schobel",null,null,null,null,null,null,null,null,null,6,15,11,4,"3."]
["Termin","Samstag 07. April",null,null,null,null,null,null,"Dornbirn 2","Simon Tiefenthaler / Michael Feurstein",null,null,null,null,null,null,null,null,null,3,3,16,-13,"4."]
["Beginn:","14:00 - 17:00 Uhr",null,null,null,null,null,null,"Hohenems","Tobias Prisching / Elias Kronberger",null,null,null,null,null,null,null,null,null,0,2,20,-18,"5."]
["Kategorie:","Jugend",null,"2. Runde"]
[]
[null,"Mannschaft","  ","Mannschaft",null,null,null,null,"Mannschaft",1,2,3,4,5,6,7,8,9,10,"Pkt."]
["Spiel 1","Dornbirn 1",":","Dornbirn 2",4,":",1,null,"Dornbirn 1",3,null,null,3,null,null,3,null,null,0,9]
["Spiel 2","Höchst 2",":","Höchst 1",2,":",1,null,"Höchst 2",null,3,null,null,3,null,null,3,null,3,12]
["Spiel 3","Hohenems",":","Dornbirn 2",0,":",8,null,"Höchst 1",null,0,null,0,null,3,null,null,3,null,6]
["Spiel 4","Dornbirn 1",":","Höchst 1",3,":",1,null,"Hohenems",null,null,0,null,0,null,0,null,0,null,0]
["Spiel 5","Höchst 2",":","Hohenems",9,":",1,null,"Dornbirn 2",0,null,3,null,null,0,null,0,null,null,3]
["Spiel 6","Höchst 1",":","Dornbirn 2",3,":",0]
["Spiel 7","Dornbirn 1",":","Hohenems",4,":",1,null,null,"Team 1",null,"Team 2",null,"Team 3",null,"Team 4",null,"Team 5"]
["Spiel 8","Höchst 2",":","Dornbirn 2",7,":",2,null,null,"D'birn 1",null,"Höch 2",null,"Höch 1",null,"H'ems",null,"D'birn 2"]
["Spiel 9","Höchst 1",":","Hohenems",8,":",0,null,"1. Spiel",4,1,2,1,1,2,0,8,1,4]
["Spiel 10","Dornbirn 1",":","Höchst 2",2,":",7,null,"2. Spiel",3,1,9,1,1,3,1,9,8,0]
[null,null,null,null,null,null,null,null,"3. Spiel",4,1,7,2,3,0,1,4,0,3]
[null,null,null,null,null,null,null,null,"4. Spiel",2,7,7,2,8,0,0,8,2,7]
[null,null,null,null,null,null,null,null,"Tore/Total",13,10,25,6,13,5,2,29,11,14]
[null,null,null,null,null,null,null,null,"Differenz",3,null,19,null,8,null,-27,null,-3]
[]
[null,null,null,null,null,null,null,null,"Zeitnehmer","Robert Rutkowski"]
[null,null,null,null,null,null,null,null,"Kommisär","Maximilian Schwendinger / Simon Buchhäusl"]
[]
[null,null,null,null,null,null,null,null,"Endstand nach der 2. Runde",null,null,null,null,null,null,null,null,null,null,"Pkt.","Tore",null,"TDF","Rg."]
[null,null,null,null,null,null,null,null,"Höchst 2","Elias Gabriel / Linus Lampert",null,null,null,null,null,null,null,null,null,24,45,13,32,"1."]
["Vorkommnisse","2 x 5 Minuten Spielzeit",null,null,null,null,null,null,"Dornbirn 1","Philipp Schwendinger / Jonathan Gawlik",null,null,null,null,null,null,null,null,null,18,36,19,17,"2."]
["Dornbirn 1: Mathias Feurstein statt Jonathan Gawlik",null,null,null,null,null,null,null,"Höchst 1","Jonas Lampert / Leon Schobel",null,null,null,null,null,null,null,null,null,12,28,16,12,"3."]
["Hohenems: David Prischnig statt Elias Kronberger",null,null,null,null,null,null,null,"Dornbirn 2","Simon Tiefenthaler / Michael Feurstein",null,null,null,null,null,null,null,null,null,6,14,30,-16,"4."]
[null,null,null,null,null,null,null,null,"Hohenems","Tobias Prisching / Elias Kronberger",null,null,null,null,null,null,null,null,null,0,4,49,-45,"5."]
[]
["Finale am 21. April in Sulz"]
[]
[]
[]
["Bewerb:","Vorarlberger Meisterschaft 2018",null,null,null,null,null,null,"Zwischenstand nach der 2. Runde",null,null,null,null,null,null,null,null,null,null,"Pkt.","Tore",null,"TDF","Rg."]
["Veranstalter:","VLRV Vorarlberg",null,null,null,null,null,null,"Höchst 2","Elias Gabriel / Linus Lampert",null,null,null,null,null,null,null,null,null,24,45,13,32,"1."]
["Ausrichter:","RV Sulz",null,null,null,null,null,null,"Dornbirn 1","Philipp Schwendinger / Jonathan Gawlik",null,null,null,null,null,null,null,null,null,18,36,19,17,"2."]
["Spielort:","Haupschule Sulz",null,null,null,null,null,null,"Höchst 1","Jonas Lampert / Leon Schobel",null,null,null,null,null,null,null,null,null,12,28,16,12,"3."]
["Termin","Samstag 21. April",null,null,null,null,null,null,"Dornbirn 2","Simon Tiefenthaler / Michael Feurstein",null,null,null,null,null,null,null,null,null,6,14,30,-16,"4."]
["Beginn:","14:00 - 16:00 Uhr",null,null,null,null,null,null,"Hohenems","Tobias Prisching / Elias Kronberger",null,null,null,null,null,null,null,null,null,0,4,49,-45,"5."]
["Kategorie:","Jugend",null,"Finale"]
[]
[null,"Mannschaft","  ","Mannschaft",null,null,null,null,"Mannschaft",1,2,3,4,5,6,7,8,9,10,"Pkt."]
["Spiel 1","Dornbirn 1",":","Dornbirn 2",2,":",1,null,"Dornbirn 1",3,null,null,0,null,null,3,null,null,0,{"$f":"SUM(J88:S88)","v":6}]
["Spiel 2","Höchst 2",":","Höchst 1",2,":",2,null,"Höchst 2",null,1,null,null,3,null,null,3,null,3,{"$f":"SUM(J89:S89)","v":10}]
["Spiel 3","Hohenems",":","Dornbirn 2",2,":",8,null,"Höchst 1",null,1,null,3,null,3,null,null,3,null,10]
["Spiel 4","Dornbirn 1",":","Höchst 1",1,":",3,null,"Hohenems",null,null,0,null,0,null,0,null,0,null,0]
["Spiel 5","Höchst 2",":","Hohenems",6,":",1,null,"Dornbirn 2",0,null,3,null,null,0,null,0,null,null,3]
["Spiel 6","Höchst 1",":","Dornbirn 2",3,":",2]
["Spiel 7","Dornbirn 1",":","Hohenems",5,":",0,null,null,"Team 1",null,"Team 2",null,"Team 3",null,"Team 4",null,"Team 5"]
["Spiel 8","Höchst 2",":","Dornbirn 2",4,":",2,null,null,"D'birn 1",null,"Höch 2",null,"Höch 1",null,"H'ems",null,"D'birn 2"]
["Spiel 9","Höchst 1",":","Hohenems",5,":",0,null,"1. Spiel",2,1,2,2,2,2,2,8,1,2]
["Spiel 10","Dornbirn 1",":","Höchst 2",2,":",3,null,"2. Spiel",1,3,6,1,3,1,1,6,8,2]
[null,null,null,null,null,null,null,null,"3. Spiel",5,0,4,2,3,2,0,5,2,3]
[null,null,null,null,null,null,null,null,"4. Spiel",2,3,3,2,5,0,0,5,2,4]
[null,null,null,null,null,null,null,null,"Tore/Total",{"$f":"SUM(J96:J99)","v":10},{"$f":"SUM(K96:K99)","v":7},15,7,13,5,3,24,13,11]
[null,null,null,null,null,null,null,null,"Differenz",3,null,8,null,8,null,-21,null,2]
[]
[null,null,null,null,null,null,null,null,"Zeitnehmer","Bachmann Kevin"]
[null,null,null,null,null,null,null,null,"Kommisär","Hron Jonas, Benzer Herbert, Bachmann Kevin"]
[]
[null,null,null,null,null,null,null,null,"Endstand LM 2018",null,null,null,null,null,null,null,null,null,null,"Pkt.","Tore",null,"TDF","Rg."]
[null,null,null,null,null,null,null,null,"Höchst 2","Elias Gabriel / Linus Lampert",null,null,null,null,null,null,null,null,null,34,60,20,40,"1."]
["Vorkommnisse","2 x 5 Minuten Spielzeit",null,null,null,null,null,null,"Dornbirn 1","Philipp Schwendinger / Jonathan Gawlik",null,null,null,null,null,null,null,null,null,24,46,26,20,"2."]
[null,null,null,null,null,null,null,null,"Höchst 1","Jonas Lampert / Leon Schobel",null,null,null,null,null,null,null,null,null,22,41,21,20,"3."]
["Dornbirn 1  Mathias Feurstein für Jonathan Gawlik",null,null,null,null,null,null,null,"Dornbirn 2","Simon Tiefenthaler / Michael Feurstein",null,null,null,null,null,null,null,null,null,9,27,41,-14,"4."]
["Hohenems  David Prisching für Elias Kronberger",null,null,null,null,null,null,null,"Hohenems","Tobias Prisching / Elias Kronberger",null,null,null,null,null,null,null,null,null,0,7,73,-66,"5."]

{"sheet":" Schüler A","index":3,"n_rows":80,"n_cols":31,"rows_kept":80,"cut":false,"hidden":false,"merged":[[78,23,78,24],[78,27,78,28],[75,0,75,6],[75,9,75,22],[76,0,76,6],[76,9,76,22],[77,0,77,6],[77,9,77,22],[78,25,78,26],[71,9,71,22],[72,9,72,22],[73,0,73,6],[73,9,73,22],[74,0,74,6],[74,9,74,22],[67,19,67,20],[67,21,67,22],[68,9,68,28],[69,9,69,28],[70,8,70,22],[70,24,70,25],[67,9,67,10],[67,11,67,12],[67,13,67,14],[67,15,67,16],[67,17,67,18],[47,1,47,2],[47,3,47,6],[47,9,47,22],[48,9,48,22],[58,9,58,10],[58,11,58,12],[58,13,58,14],[58,15,58,16],[58,17,58,18],[58,19,58,20],[58,21,58,22],[44,1,44,6],[44,9,44,22],[45,1,45,6],[45,9,45,22],[46,1,46,6],[46,9,46,22],[41,1,41,6],[41,8,41,22],[42,1,42,6],[42,9,42,22],[43,1,43,6],[43,9,43,22],[33,9,33,22],[34,9,34,22],[35,0,35,6],[35,9,35,22],[28,9,28,28],[29,8,29,22],[30,9,30,22],[31,9,31,22],[32,9,32,22],[32,0,32,6],[34,0,34,6],[29,24,29,25],[4,1,4,6],[4,9,4,22],[5,1,5,6],[5,9,5,22],[2,1,2,6],[3,1,3,6],[3,9,3,22],[0,1,0,6],[0,8,0,22],[1,1,1,6],[1,9,1,22],[2,9,2,22],[17,13,17,14],[17,15,17,16],[17,17,17,18],[17,19,17,20],[17,21,17,22],[39,0,39,3],[6,1,6,2],[6,3,6,6],[17,9,17,10],[17,11,17,12],[6,9,6,22],[7,9,7,22],[26,9,26,10],[26,11,26,12],[26,13,26,14],[26,15,26,16],[26,17,26,18],[26,19,26,20],[26,21,26,22],[27,9,27,28],[33,0,33,6],[36,0,36,6],[37,23,37,24],[37,27,37,28],[36,9,36,22],[38,0,38,3]]}
["Bewerb:","Vorarlberger Meisterschaft 2018",null,null,null,null,null,null,"Mannschaften"]
["Veranstalter:","VLRV Vorarlberg",null,null,null,null,null,null,"Dornbirn 1","Marco Eibl / Marcel Zotter"]
["Ausrichter:","RC Höchst",null,null,null,null,null,null,"Dornbirn 2","David Buchhäusl / Mathias Feurstein"]
["Spielort:","Rheinauhalle",null,null,null,null,null,null,"D'birn/H'ems","David Prisching / Luis Raith"]
["Termin","Samstag 10. März",null,null,null,null,null,null,"Höchst 1","Leander Piuk / Matteo Faissner"]
["Beginn:","16:00 - 19:00 Uhr",null,null,null,null,null,null,"Höchst 2","Max Schallert / Timo Lampert"]
["Kategorie:","Schüler",null,"1. Runde (Spiel 1-14)",null,null,null,null,"Höchst 3","Linus Lampert / Theo Prantl"]
[null,null,null,null,null,null,null,null,"Höchst 4","Johannes Brunner / Vinzent Rettenhaber"]
[null,"Mannschaft","  ","Mannschaft",null,null,null,null,"Mannschaft",1,2,3,4,5,6,7,8,9,10,11,12,13,14,15,16,17,18,19,20,21,"Pkt"]
["Spiel 1","Höchst 1",":","Höchst 3",4,":",5,null,"Höchst 1",0,null,null,null,3,null,null,null,3,null,null,null,1,null,null,null,0,null,null,null,3,10]
["Spiel 2","Dornbirn 1",":","Dornbirn 2",1,":",0,null,"Dornbirn 1",null,3,null,null,null,3,null,null,null,3,null,null,null,0,null,null,null,0,null,null,0,9]
["Spiel 3","Höchst 2",":","Höchst 4",7,":",0,null,"Höchst 2",null,null,3,null,null,null,3,null,null,null,0,null,null,3,null,null,3,null,null,3,null,15]
["Spiel 4","D'birn/H'ems",":","Höchst 3",0,":",1,null,"D'birn/H'ems",null,null,null,0,null,null,0,null,null,0,null,null,1,null,null,0,null,null,0,null,null,1]
["Spiel 5","Höchst 1",":","Dornbirn 2",5,":",2,null,"Höchst 4",null,null,0,null,null,0,null,null,0,null,null,1,null,null,0,null,null,null,3,null,null,4]
["Spiel 6","Dornbirn 1",":","Höchst 4",4,":",2,null,"Dornbirn 2",null,0,null,null,0,null,null,0,null,null,null,1,null,null,null,3,null,null,null,0,null,4]
["Spiel 7","Höchst 2",":","D'birn/H'ems",7,":",0,null,"Höchst 3",3,null,null,3,null,null,null,3,null,null,3,null,null,null,3,null,null,3,null,null,null,18]
["Spiel 8","Dornbirn 2",":","Höchst 3",2,":",5,null,null,"Team 1",null,"Team 2",null,"Team 3",null,"Team 4",null,"Team 5",null,"Team 6",null,"Team 7"]
["Spiel 9","Höchst 1",":","Höchst 4",4,":",2,null,null,"Höch 1",null,"D'birn 1",null,"Höch 2",null,"Do/Ems",null,"Höch 4",null,"D'birn 2",null,"Höch 3"]
["Spiel 10","Dornbirn 1",":","D'birn/H'ems",5,":",1,null,"1. Spiel",4,5,1,0,7,0,0,1,0,7,0,1,5,4]
["Spiel 11","Höchst 2",":","Höchst 3",1,":",4,null,"2. Spiel",5,2,4,2,7,0,0,7,2,4,2,5,1,0]
["Spiel 12","Höchst 4",":","Dornbirn 2",2,":",2,null,"3. Spiel",4,2,5,1,1,4,1,5,2,4,2,5,5,2]
["Spiel 13","Höchst 1",":","D'birn/H'ems",4,":",1,null,"4. Spiel",4,1,2,5,5,2,1,4,2,2,2,2,4,1]
["Spiel 14","Dornbirn 1",":","Höchst 2",2,":",5,null,"5. Spiel",4,7,0,4,7,4,1,4,1,4,4,1,4,1]
["Spiel 15","Höchst 4",":","Höchst 3",1,":",4,null,"6. Spiel",4,3,3,4,4,0,1,2,2,1,0,4,4,0]
["Spiel 16","D'birn/H'ems",":","Dornbirn 2",1,":",4]
["Spiel 17","Höchst 1",":","Höchst 2",4,":",7,null,"Tore/Total",25,20,15,16,31,10,4,23,9,22,10,18,23,8]
["Spiel 18","Dornbirn 1",":","Höchst 3",0,":",4,null,"Differenz",5,null,-1,null,21,null,-19,null,-13,null,-8,null,15]
["Spiel 19","D'birn/H'ems",":","Höchst 4",1,":",2,null,"Zeitnehmer","Reinhard Schneider"]
["Spiel 20","Höchst 2",":","Dornbirn 2",4,":",0,null,"Kommisär","Simon Kaufmann / Simon Schlegel"]
["Spiel 21","Höchst 1",":","Dornbirn 1",4,":",3,null,"Stand nach 21 Spielen",null,null,null,null,null,null,null,null,null,null,null,null,null,null,"Pkt","Tore",null,"TDF","Rg."]
[null,null,null,null,null,null,null,null,"Höchst 3","Linus Lampert / Theo Prantl",null,null,null,null,null,null,null,null,null,null,null,null,null,18,23,8,15,"1."]
[null,null,null,null,null,null,null,null,"Höchst 2","Max Schallert / Timo Lampert",null,null,null,null,null,null,null,null,null,null,null,null,null,15,31,10,21,"2."]
[null,null,null,null,null,null,null,null,"Höchst 1","Leander Piuk / Matteo Faissner",null,null,null,null,null,null,null,null,null,null,null,null,null,10,25,20,5,"3."]
[null,null,null,null,null,null,null,null,"Dornbirn 1","Marco Eibl / Marcel Zotter",null,null,null,null,null,null,null,null,null,null,null,null,null,9,15,16,-1,"4."]
[null,null,null,null,null,null,null,null,"Dornbirn 2","David Buchhäusl / Mathias Feurstein",null,null,null,null,null,null,null,null,null,null,null,null,null,4,10,18,-8,"5."]
[null,null,null,null,null,null,null,null,"Höchst 4","Johannes Brunner / Vinzent Rettenhaber",null,null,null,null,null,null,null,null,null,null,null,null,null,4,9,22,-13,"6."]
[null,null,null,null,null,null,null,null,"D'birn/H'ems","David Prisching / Luis Raith",null,null,null,null,null,null,null,null,null,null,null,null,null,1,4,23,-19,"7."]
[]
["2. Runde am 07. April in Dornbirn"]
["Finale am 21. April in Sulz"]
[]
["Bewerb:","Vorarlberger Meisterschaft 2018",null,null,null,null,null,null,"Mannschaften"]
["Veranstalter:","VLRV Vorarlberg",null,null,null,null,null,null,"Dornbirn 1","Marco Eibl / Marcel Zotter"]
["Ausrichter:","RV Sulz",null,null,null,null,null,null,"Dornbirn 2","David Buchhäusl / Mathias Feurstein"]
["Spielort:","Haupschule Sulz",null,null,null,null,null,null,"D'birn/H'ems","David Prisching / Luis Raith"]
["Termin","Samstag 21. April",null,null,null,null,null,null,"Höchst 1","Leander Piuk / Matteo Faissner"]
["Beginn:","11:00 - 14:00 Uhr",null,null,null,null,null,null,"Höchst 2","Max Schallert / Timo Lampert"]
["Kategorie:","Schüler",null,"Finale",null,null,null,null,"Höchst 3","Linus Lampert / Theo Prantl"]
[null,null,null,null,null,null,null,null,"Höchst 4","Johannes Brunner / Vinzent Rettenhaber"]
[null,"Mannschaft","  ","Mannschaft",null,null,null,null,"Mannschaft",1,2,3,4,5,6,7,8,9,10,11,12,13,14,15,16,17,18,19,20,21,"Pkt"]
["Spiel 1","Höchst 1",":","Höchst 3",1,":",3,null,"Höchst 1",0,null,null,null,3,null,null,null,3,null,null,null,3,null,null,null,0,null,null,null,3,22]
["Spiel 2","Dornbirn 1",":","Dornbirn 2",5,":",1,null,"Dornbirn 1",null,3,null,null,null,1,null,null,null,3,null,null,null,0,null,null,null,0,null,null,0,16]
["Spiel 3","Höchst 2",":","Höchst 4",6,":",2,null,"Höchst 2",null,null,3,null,null,null,3,null,null,null,0,null,null,3,null,null,3,null,null,3,null,30]
["Spiel 4","D'birn/H'ems",":","Höchst 3",2,":",4,null,"D'birn/H'ems",null,null,null,0,null,null,0,null,null,0,null,null,0,null,null,0,null,null,0,null,null,1]
["Spiel 5","Höchst 1",":","Dornbirn 2",5,":",2,null,"Höchst 4",null,null,0,null,null,1,null,null,0,null,null,1,null,null,0,null,null,null,3,null,null,9]
["Spiel 6","Dornbirn 1",":","Höchst 4",2,":",2,null,"Dornbirn 2",null,0,null,null,0,null,null,0,0,null,null,1,null,null,null,3,null,null,null,0,null,8]
["Spiel 7","Höchst 2",":","D'birn/H'ems",3,":",0,null,"Höchst 3",3,null,null,3,null,null,null,3,null,null,3,null,null,null,3,null,null,3,null,null,null,36]
["Spiel 8","Dornbirn 2",":","Höchst 3",0,":",4,null,null,"Team 1",null,"Team 2",null,"Team 3",null,"Team 4",null,"Team 5",null,"Team 6",null,"Team 7"]
["Spiel 9","Höchst 1",":","Höchst 4",8,":",0,null,null,"Höch 1",null,"D'birn 1",null,"Höch 2",null,"Do/Ems",null,"Höch 4",null,"D'birn 2",null,"Höch 3"]
["Spiel 10","Dornbirn 1",":","D'birn/H'ems",5,":",0,null,"1. Spiel",1,3,5,1,6,2,2,4,2,6,1,5,3,1]
["Spiel 11","Höchst 2",":","Höchst 3",2,":",4,null,"2. Spiel",5,2,2,2,3,0,0,3,2,2,2,5,4,2]
["Spiel 12","Höchst 4",":","Dornbirn 2",3,":",3,null,"3. Spiel",8,0,5,0,2,4,0,5,0,8,0,4,4,0]
["Spiel 13","Höchst 1",":","D'birn/H'ems",5,":",0,null,"4. Spiel",5,0,0,4,4,0,0,5,3,3,3,3,4,2]
["Spiel 14","Dornbirn 1",":","Höchst 2",0,":",4,null,"5. Spiel",1,3,1,4,3,1,0,5,0,3,5,0,3,0]
["Spiel 15","Höchst 4",":","Höchst 3",0,":",3,null,"6. Spiel",3,2,2,3,9,0,0,5,5,0,0,9,4,1]
["Spiel 16","D'birn/H'ems",":","Dornbirn 2",0,":",5]
["Spiel 17","Höchst 1",":","Höchst 2",1,":",3,null,"Tore/Total",{"$f":"SUM(J60:J66)","v":23},{"$f":"SUM(K60:K66)","v":10},15,14,27,7,2,27,12,22,11,26,22,6]
["Spiel 18","Dornbirn 1",":","Höchst 3",1,":",4,null,"Differenz",13,null,1,null,20,null,-25,null,-10,null,-15,null,16]
["Spiel 19","D'birn/H'ems",":","Höchst 4",0,":",5,null,"Zeitnehmer","Bachmann Kevin"]
["Spiel 20","Höchst 2",":","Dornbirn 2",9,":",0,null,"Kommisär","Greussing Mario, Eiler Michael"]
["Spiel 21","Höchst 1",":","Dornbirn 1",3,":",2,null,"Endstand LM 2018",null,null,null,null,null,null,null,null,null,null,null,null,null,null,"Pkt","Tore",null,"TDF","Rg."]
[null,null,null,null,null,null,null,null,"Höchst 3","Linus Lampert / Theo Prantl",null,null,null,null,null,null,null,null,null,null,null,null,null,36,45,14,31,"1."]
[null,null,null,null,null,null,null,null,"Höchst 2","Max Schallert / Timo Lampert",null,null,null,null,null,null,null,null,null,null,null,null,null,30,58,17,41,"2."]
[null,null,null,null,null,null,null,null,"Höchst 1","Leander Piuk / Matteo Faissner",null,null,null,null,null,null,null,null,null,null,null,null,null,22,48,30,18,"3."]
["Dprnbirn / Hohenems  fällt aus",null,null,null,null,null,null,null,"Dornbirn 1","Marco Eibl / Marcel Zotter",null,null,null,null,null,null,null,null,null,null,null,null,null,16,30,30,0,"4."]
[null,null,null,null,null,null,null,null,"Höchst 4","Johannes Brunner / Vinzent Rettenhaber",null,null,null,null,null,null,null,null,null,null,null,null,null,9,21,44,-23,"5."]
[null,null,null,null,null,null,null,null,"Dornbirn 2","David Buchhäusl / Mathias Feurstein",null,null,null,null,null,null,null,null,null,null,null,null,null,8,21,44,-23,"6."]
[null,null,null,null,null,null,null,null,"D'birn/H'ems","David Prisching / Luis Raith",null,null,null,null,null,null,null,null,null,null,null,null,null,1,6,50,-44,"7."]
[]
[null,null,null,null,null,null,null,null,null,null,null,null,null,null,null,null,null,null,null,null,null,null,null,null,null,null,{"$f":"SUM(AA72:AA78)","v":0}]

{"sheet":"Schüler C","index":4,"n_rows":108,"n_cols":28,"rows_kept":108,"cut":false,"hidden":false,"merged":[[105,0,105,6],[105,9,105,22],[106,0,106,6],[106,9,106,22],[107,0,107,6],[107,9,107,22],[99,9,99,27],[100,9,100,27],[103,8,103,22],[103,24,103,25],[104,9,104,22],[91,9,91,10],[91,11,91,12],[91,13,91,14],[91,15,91,16],[96,9,96,10],[96,11,96,12],[96,13,96,14],[96,15,96,16],[84,15,84,16],[84,18,88,26],[85,15,85,16],[86,15,86,16],[87,15,87,16],[88,15,88,16],[78,1,78,6],[78,7,90,7],[78,8,78,22],[78,24,78,25],[79,1,79,6],[79,9,79,22],[80,1,80,6],[80,9,80,22],[81,1,81,6],[81,9,81,22],[82,1,82,6],[82,9,82,22],[83,1,83,6],[83,8,83,27],[84,1,84,2],[84,3,84,6],[71,0,71,3],[40,24,40,25],[67,0,67,6],[67,9,67,22],[68,0,68,6],[68,9,68,22],[69,0,69,6],[69,9,69,22],[61,9,61,27],[62,9,62,27],[65,8,65,22],[65,24,65,25],[66,9,66,22],[53,9,53,10],[53,11,53,12],[53,13,53,14],[53,15,53,16],[58,9,58,10],[58,11,58,12],[58,13,58,14],[58,15,58,16],[46,15,46,16],[46,18,50,26],[47,15,47,16],[48,15,48,16],[49,15,49,16],[50,15,50,16],[27,24,27,25],[40,1,40,6],[40,7,52,7],[40,8,40,22],[41,1,41,6],[41,9,41,22],[42,1,42,6],[42,9,42,22],[43,1,43,6],[43,9,43,22],[44,1,44,6],[44,9,44,22],[45,1,45,6],[45,8,45,27],[46,1,46,2],[46,3,46,6],[30,0,30,6],[31,0,31,6],[30,9,30,22],[31,9,31,22],[33,0,33,3],[5,1,5,6],[5,9,5,22],[6,9,6,22],[6,1,6,6],[15,15,15,16],[2,7,14,7],[2,8,2,22],[7,8,7,27],[8,1,8,2],[8,3,8,6],[8,15,8,16],[8,18,12,26],[9,15,9,16],[10,15,10,16],[15,9,15,10],[15,11,15,12],[2,1,2,6],[4,1,4,6],[4,9,4,22],[3,1,3,6],[3,9,3,22],[34,0,34,3],[23,9,23,27],[24,9,24,27],[7,1,7,6],[20,9,20,10],[20,11,20,12],[20,13,20,14],[20,15,20,16],[27,8,27,22],[28,9,28,22],[11,15,11,16],[12,15,12,16],[15,13,15,14],[29,0,29,6],[29,9,29,22]]}
[]
[]
["Bewerb:","Vorarlberger Meisterschaft 2018",null,null,null,null,null,null,"Mannschaften Schüler C"]
["Veranstalter:","VLRV Vorarlberg",null,null,null,null,null,null,"Höchst 5","Elias Frick / Lukas Walser"]
["Ausrichter:","RC Höchst",null,null,null,null,null,null,"Dornbirn","Mathias Maierhofer / Felix Feuis"]
["Spielort:","Rheinauhalle",null,null,null,null,null,null,"Hohenems 1","Mateo Krenmayr / Ryan Mangold"]
["Termin","Samstag 10. März",null,null,null,null,null,null,"Hohenems 2","Aaron und Daniel Rzipa"]
["Beginn:","14:00 - 15:30 Uhr"]
["Kategorie:","Schüler C",null,"1. Runde",null,null,null,null,"Mannschaft",1,2,3,4,5,6,"Pkt."]
[null,null,null,null,null,null,null,null,"Höchst 5",0,null,3,null,null,3,6]
[" ","Mannschaft","  ","Mannschaft",null,null,null,null,"Hohenems 1",null,3,null,0,null,0,3]
["Spiel 1","Höchst 5",":","Dornbirn",0,":",1,null,"Hohenems 2",null,0,0,null,0,null,0]
["Spiel 2","Hohenems 1",":","Hohenems 2",5,":",0,null,"Dornbirn",3,null,null,3,3,null,9]
["Spiel 3","Höchst 5",":","Hohenems 2",5,":",0]
["Spiel 4","Hohenems 1",":","Dornbirn",1,":",2,null,null,"Team 1",null,"Team 2",null,"Team 1",null,"Team 2"]
["Spiel 5","Hohenems 2",":","Dornbirn",0,":",5,null,null,"Höch 5",null,"H'ems 1",null,"H'ems 2",null,"D'birn"]
["Spiel 6","Höchst 5",":","Hohenems 1",4,":",1,null,"1.+4. Spiel",0,1,5,0,0,5,1,0]
[null,null,null,null,null,null,null,null,"2.+5. Spiel",5,0,1,2,0,5,2,1]
[null,null,null,null,null,null,null,null,"3.+6. Spiel",4,1,1,4,0,5,5,0]
[null,null,null,null,null,null,null,null,"Tore/Total",9,2,7,6,0,15,8,1]
[null,null,null,null,null,null,null,null,"Differenz",7,null,1,null,-15,null,7]
[]
[]
[null,null,null,null,null,null,null,null,"Zeitnehmer","Reinhard Schneider"]
[null,null,null,null,null,null,null,null,"Kommisär","Simon Kaufmann/Simon Schlegel"]
[]
[]
[null,null,null,null,null,null,null,null,"Endstand nach der 1. Runde",null,null,null,null,null,null,null,null,null,null,null,null,null,null,"Pkt","Tore",null,"TD","Rg."]
["Vorkommnisse","Spielzeit 2 x 5 Minuten",null,null,null,null,null,null,"Dornbirn","Mathias Maierhofer / Felix Feuis",null,null,null,null,null,null,null,null,null,null,null,null,null,9,8,1,7,1]
["Hohenems 2 ist wegen Krankheit ausgefallen, alle Spiele 0:5",null,null,null,null,null,null,null,"Höchst 5","Elias Frick / Lukas Walser",null,null,null,null,null,null,null,null,null,null,null,null,null,6,9,2,7,2]
[null,null,null,null,null,null,null,null,"Hohenems 1","Mateo Krenmayr / Ryan Mangold",null,null,null,null,null,null,null,null,null,null,null,null,null,3,7,6,1,3]
[null,null,null,null,null,null,null,null,"Hohenems 2","Aaron und Daniel Rzipa",null,null,null,null,null,null,null,null,null,null,null,null,null,0,0,15,-15,4]
[]
["2. Runde am 07. April in Dornbirn"]
["Finale am 21. April in Sulz"]
[]
[]
[]
[]
[]
["Bewerb:","Vorarlberger Meisterschaft 2018",null,null,null,null,null,null,"Zwischenstand nach der 1. Runde",null,null,null,null,null,null,null,null,null,null,null,null,null,null,"Pkt","Tore",null,"TD","Rg."]
["Veranstalter:","VLRV Vorarlberg",null,null,null,null,null,null,"Dornbirn","Mathias Maierhofer / Felix Feuis",null,null,null,null,null,null,null,null,null,null,null,null,null,9,8,1,7,1]
["Ausrichter:","RV Dornbirn",null,null,null,null,null,null,"Höchst 5","Elias Frick / Lukas Walser",null,null,null,null,null,null,null,null,null,null,null,null,null,6,9,2,7,2]
["Spielort:","HS Haselstauden (Bunker)",null,null,null,null,null,null,"Hohenems 1","Mateo Krenmayr / Ryan Mangold",null,null,null,null,null,null,null,null,null,null,null,null,null,3,7,6,1,3]
["Termin","Samstag 07. April",null,null,null,null,null,null,"Hohenems 2","Aaron und Daniel Rzipa",null,null,null,null,null,null,null,null,null,null,null,null,null,0,0,15,-15,4]
["Beginn:","09:00 - 11:00 Uhr"]
["Kategorie:","Schüler C",null,"2. Runde",null,null,null,null,"Mannschaft",1,2,3,4,5,6,"Pkt."]
[null,null,null,null,null,null,null,null,"Höchst 5",1,null,3,null,null,3,7]
[" ","Mannschaft","  ","Mannschaft",null,null,null,null,"Hohenems 1",null,3,null,0,null,0,3]
["Spiel 1","Höchst 5",":","Dornbirn",2,":",2,null,"Hohenems 2",null,0,0,null,0,null,0]
["Spiel 2","Hohenems 1",":","Hohenems 2",5,":",0,null,"Dornbirn",1,null,null,3,3,null,7]
["Spiel 3","Höchst 5",":","Hohenems 2",5,":",0]
["Spiel 4","Hohenems 1",":","Dornbirn",0,":",5,null,null,"Team 1",null,"Team 2",null,"Team 1",null,"Team 2"]
["Spiel 5","Hohenems 2",":","Dornbirn",0,":",5,null,null,"Höch 5",null,"H'ems 1",null,"H'ems 2",null,"D'birn"]
["Spiel 6","Höchst 5",":","Hohenems 1",4,":",0,null,"1.+4. Spiel",2,2,5,0,0,5,2,2]
[null,null,null,null,null,null,null,null,"2.+5. Spiel",5,0,0,5,0,5,5,0]
[null,null,null,null,null,null,null,null,"3.+6. Spiel",4,0,0,4,0,5,5,0]
[null,null,null,null,null,null,null,null,"Tore/Total",11,2,5,9,0,15,12,2]
[null,null,null,null,null,null,null,null,"Differenz",9,null,-4,null,-15,null,10]
[]
[]
[null,null,null,null,null,null,null,null,"Zeitnehmer","Lukas Raich"]
[null,null,null,null,null,null,null,null,"Kommisär","Michael Eiler / Gernot Fontain"]
[]
[]
[null,null,null,null,null,null,null,null,"Endstand nach der 2. Runde",null,null,null,null,null,null,null,null,null,null,null,null,null,null,"Pkt","Tore",null,"TD","Rg."]
["Vorkommnisse","Spielzeit 2 x 5 Minuten",null,null,null,null,null,null,"Dornbirn","Mathias Maierhofer / Felix Feuis",null,null,null,null,null,null,null,null,null,null,null,null,null,16,20,3,17,1]
["Hohenems 2 ist wegen Krankheit ausgefallen, alle Spiele 0:5",null,null,null,null,null,null,null,"Höchst 5","Elias Frick / Lukas Walser",null,null,null,null,null,null,null,null,null,null,null,null,null,13,20,4,16,2]
["Höchst 5: Vinzent Rettenhaber für Elias Frick",null,null,null,null,null,null,null,"Hohenems 1","Mateo Krenmayr / Ryan Mangold",null,null,null,null,null,null,null,null,null,null,null,null,null,6,12,15,-3,3]
[null,null,null,null,null,null,null,null,"Hohenems 2","Aaron und Daniel Rzipa",null,null,null,null,null,null,null,null,null,null,null,null,null,0,0,30,-30,4]
[]
["Finale am 21. April in Sulz"]
[]
[]
[]
[]
[]
[]
["Bewerb:","Vorarlberger Meisterschaft 2018",null,null,null,null,null,null,"Zwischenstand nach der 2. Runde",null,null,null,null,null,null,null,null,null,null,null,null,null,null,"Pkt","Tore",null,"TD","Rg."]
["Veranstalter:","VLRV Vorarlberg",null,null,null,null,null,null,"Dornbirn","Mathias Maierhofer / Felix Feuis",null,null,null,null,null,null,null,null,null,null,null,null,null,16,20,3,17,1]
["Ausrichter:","RV Dornbirn",null,null,null,null,null,null,"Höchst 5","Elias Frick / Lukas Walser",null,null,null,null,null,null,null,null,null,null,null,null,null,13,20,4,16,2]
["Spielort:","HS Haselstauden (Bunker)",null,null,null,null,null,null,"Hohenems 1","Mateo Krenmayr / Ryan Mangold",null,null,null,null,null,null,null,null,null,null,null,null,null,6,12,15,-3,3]
["Termin","Samstag 07. April",null,null,null,null,null,null,"Hohenems 2","Aaron und Daniel Rzipa",null,null,null,null,null,null,null,null,null,null,null,null,null,0,0,30,-30,4]
["Beginn:","09:00 - 11:00 Uhr"]
["Kategorie:","Schüler C",null,"Finale",null,null,null,null,"Mannschaft",1,2,3,4,5,6,"Pkt."]
[null,null,null,null,null,null,null,null,"Dornbirn"]
[" ","Mannschaft","  ","Mannschaft",null,null,null,null,"Höchst 5"]
["Spiel 1","Dornbirn",":","Hohenems 2",9,":",0,null,"Hohenems 1"]
["Spiel 2","Höchst 5",":","Hohenems 1",3,":",0,null,"Hohenems 2"]
["Spiel 3","Dornbirn",":","Hohenems 1",4,":",0]
["Spiel 4","Höchst 5",":","Hohenems 2",7,":",0,null,null,"Team 1",null,"Team 2",null,"Team 1",null,"Team 2"]
["Spiel 5","Hohenems 1",":","Hohenems 2",2,":",0,null,null,"D'birn",null,"Höch 5",null,"H'ems 1",null,"H'ems 2"]
["Spiel 6","Dornbirn",":","Höchst 5",3,":",0,null,"1.+4. Spiel",9,0,3,0,0,3,0,9]
[null,null,null,null,null,null,null,null,"2.+5. Spiel",4,0,7,0,0,4,0,7]
[null,null,null,null,null,null,null,null,"3.+6. Spiel",3,0,0,3,2,0,0,2]
[null,null,null,null,null,null,null,null,"Tore/Total",{"$f":"SUM(J93:J95)","v":16},{"$f":"SUM(K93:K95)","v":0},10,3,2,7,0,18]
[null,null,null,null,null,null,null,null,"Differenz",16,null,7,null,-5,null,-18]
[]
[]
[null,null,null,null,null,null,null,null,"Zeitnehmer","Bachmann Markus"]
[null,null,null,null,null,null,null,null,"Kommisär","Benzer Herbert, Schallert Marco"]
[]
[]
[null,null,null,null,null,null,null,null,"Endstand LM 2018",null,null,null,null,null,null,null,null,null,null,null,null,null,null,"Pkt","Tore",null,"TD","Rg."]
["Vorkommnisse","Spielzeit 2 x 5 Minuten",null,null,null,null,null,null,"Dornbirn","Mathias Maierhofer / Felix Feuis",null,null,null,null,null,null,null,null,null,null,null,null,null,25,36,3,33,1]
[null,null,null,null,null,null,null,null,"Höchst 5","Elias Frick / Lukas Walser",null,null,null,null,null,null,null,null,null,null,null,null,null,19,30,7,23,2]
[null,null,null,null,null,null,null,null,"Hohenems 1","Mateo Krenmayr / Ryan Mangold",null,null,null,null,null,null,null,null,null,null,null,null,null,9,14,22,-8,3]
[null,null,null,null,null,null,null,null,"Hohenems 2","Aaron und Daniel Rzipa",null,null,null,null,null,null,null,null,null,null,null,null,null,0,0,48,-48,4]

{"sheet":"Meldungen","index":5,"n_rows":35,"n_cols":1,"rows_kept":35,"cut":false,"hidden":false,"merged":[]}
[]
["Elite: "]
["Höchst 1 - Patrick Schnetzer (1993) / Markus Bröll (1987)                            4-er Finale 1x unter der Woche (6 Spiele)"]
["Höchst 2 - Simon König (1985) /Florian Fischer (1988)"]
["Lustenau – Martin Lingg / Daniel König"]
["IG Sulz/Dornbirn – Kevin Bachmann / Stefan Feurstein"]
[]
["2. Liga:"]
["Höchst 3 - Simon Kaufmann (1997) /Simon Schlegel (1993)                         5 Teams (10 Spiele) 3 Runden"]
["Sulz - Hron Jonas / Greussing Mario"]
["Dornbirn 2 – Simon Buchhäusl / Robert Rutkowski"]
["Dornbirn 3 – Maximilian Schwendinger / Bastian Arnoldi"]
["Dornbirn 4 – Patrick Mittelberger / Lukas Reich "]
[]
["Jugend (2000 – 2003):"]
["Höchst 1 - Jonas Lampert (2002) / Leon Schobel (2003)                                5 Teams (10 Spiele) 3 Runden"]
["Höchst 2 - Elias Gabriel (2003) / Linus Lampert (2004)"]
["Dornbirn 1 – Philipp Schwendinger / Jonathan Gawlik"]
["Dornbirn 2 – Simon Tiefenthaler / Michael Feurstein"]
["Hohenems – Tobias und David Prisching"]
[]
["Schüler A (2004 – 2012):"]
["Höchst 1 - Leander Piuk (2004) / Matteo Faissner (2004)                             7 Teams (2 Durchgänge auf 3 Runden aufgeteilt) 3 Runden mit je 14 Spielen "]
["Höchst 2 - Max Schallert (2008) / Timo Lampert (2008)"]
["Höchst 3 – Linus Lampert (2004) / Theo Prantl (2007)"]
["IG Dornbirn/Hohenems – David Prisching / Luis Raith"]
["Dornbirn 1 – Marco Eibl / Marcel Zotter"]
["Dornbirn 2 – David Buchhäusl / Mathias Feurstein"]
["Höchst 4 - Johannes Brunner (2008) / Vinzent Rettenhaber (2008)"]
[]
["Schüler C (2004 – 2012):"]
["Höchst 5 – Elias Frick (20xx) / Lukas Walser (2007)                                          4 Teams (6 Spiele) 3 Runden"]
["Dornbirn – Mathias Maierhofer / Felix Freuis"]
["Hohenems 1 – Mateo Krenmayr / Ryan Mangold"]
["Hohenems 2 – Aaron und Daniel Rzipa"]

{"sheet":"gelb_rote Karten","index":6,"n_rows":2,"n_cols":1,"rows_kept":2,"cut":false,"hidden":false,"merged":[]}
[]
["Gelb/rote Karten LM "]